bitfinex/quotes_SOLUSD_20241118
["timestamp","ask_amount","ask_price","bid_price","bid_amount"]
[1731912905847,12.2211122,242.47,242.4,4.1254]
[1731912906358,12.2211122,242.49,242.41,23.776884]
[1731912906566,12.2211122,242.49,242.41,35.9979962]
[1731912907347,12.2211122,242.49,242.41,23.776884]
[1731912907548,12.2211122,242.49,242.42,4.125]
[1731912908756,12.2211122,242.47,242.42,4.125]
[1731912912171,12.2211122,242.48,242.42,4.125]
[1731912912551,4.1236,242.51,242.42,4.125]
[1731912912748,0.25098,242.55,242.45,12.2211122]
[1731912913077,12.2211122,242.48,242.42,14.4376]
[1731912913366,12.2211122,242.48,242.43,23.776884]
[1731912913571,12.2211122,242.5,242.43,23.776884]
[1731912914251,12.2211122,242.5,242.44,4.1247]
[1731912914571,12.2211122,242.52,242.45,23.776884]
[1731912915169,127.9770122,242.54,242.46,12.2211122]
[1731912915469,22.2281,242.57,242.5,23.776884]
[1731912915659,12.2211122,242.56,242.47,12.2211122]
[1731912915859,12.2211122,242.56,242.48,23.776884]
[1731912916070,22.2281,242.57,242.44,10.3118]
[1731912916071,12.2211122,242.54,242.44,10.3118]
[1731912916263,12.2211122,242.5,242.44,10.3118]
[1731912917373,12.2211122,242.48,242.4,4.1254]
[1731912917670,12.2211122,242.46,242.38,10.3139]
[1731912917859,12.2211122,242.44,242.38,14.4395]
[1731912918070,12.2211122,242.42,242.38,10.3139]
[1731912919050,34.8685122,242.44,242.38,10.3139]
[1731912919851,38.9932122,242.44,242.34,26.6635122]
[1731912920547,38.9932122,242.44,242.34,14.4424]
[1731912920767,38.9932122,242.44,242.34,26.6635122]
[1731912921568,34.8685122,242.44,242.35,23.776884]
[1731912921879,34.8685122,242.44,242.36,12.2211122]
[1731912922253,22.6474,242.44,242.36,12.2211122]
[1731912922456,22.6474,242.44,242.37,14.4407]
[1731912922855,16.5251,242.44,242.37,14.4407]
[1731912924369,28.7462122,242.44,242.37,14.4407]
[1731912925150,12.2211122,242.42,242.37,10.3148]
[1731912928082,12.2211122,242.42,242.32,14.4436]
[1731912928286,12.2211122,242.42,242.34,23.776884]
[1731912928569,115.7559,242.47,242.37,12.2211122]
[1731912928570,12.2211122,242.46,242.37,12.2211122]
[1731912930365,4.1244,242.46,242.39,12.2211122]
[1731912930564,16.3455122,242.46,242.38,4.1257]
[1731912931357,12.2211122,242.46,242.38,14.44]
[1731912935768,12.2211122,242.44,242.38,14.44]
[1731912936086,12.2211122,242.4,242.36,4.1259]
[1731912937286,12.2211122,242.42,242.33,10.3163]
[1731912937594,12.2211122,242.42,242.34,23.776884]
[1731912938784,12.2211122,242.42,242.35,14.4418]
[1731912940190,115.7559,242.48,242.36,35.9979962]
[1731912940191,12.2211122,242.46,242.36,35.9979962]
[1731912941082,12.2211122,242.46,242.37,14.4407]
[1731912941264,12.2211122,242.46,242.38,23.776884]
[1731912942289,7.84599923,242.45,242.38,23.776884]
[1731912942592,7.84599923,242.45,242.39,4.1255]
[1731912944586,6.0571,242.49,242.39,14.4394]
[1731912944787,116.00688,242.48,242.34,10.3159]
[1731912944977,7.84599923,242.42,242.34,10.3159]
[1731912946095,7.84599923,242.42,242.35,23.776884]
[1731912946895,4.125,242.43,242.35,23.776884]
[1731912947086,11.97099923,242.43,242.35,23.776884]
[1731912947280,4.1242,242.47,242.36,7.84599923]
[1731912947481,15.3451,242.5,242.39,23.776884]
[1731912947786,27.31489923,242.5,242.41,23.776884]
[1731912948295,7.84599923,242.48,242.39,23.776884]
[1731912948776,7.84599923,242.48,242.41,23.776884]
[1731912949200,11.97009923,242.48,242.4,4.1254]
[1731912949509,11.97009923,242.48,242.38,7.84599923]
[1731912949674,7.84599923,242.44,242.36,4.126]
[1731912950301,12.25901356,242.45,242.36,16.38501356]
[1731912951200,12.25901356,242.45,242.37,27.902684]
[1731912951201,16.38351356,242.45,242.37,27.902684]
[1731912951386,16.38351356,242.45,242.35,14.4418]
[1731912951387,12.25901356,242.43,242.35,14.4418]
[1731912951578,0.71758145,242.57,242.44,6.4822]
[1731912951776,4.1209,242.66,242.56,12.25901356]
[1731912951982,4.1209,242.66,242.45,35.01511843]
[1731912952187,0.71687153,242.68,242.57,12.25901356]
[1731912952389,12.25901356,242.66,242.57,12.25901356]
[1731912952976,12.25901356,242.66,242.55,12.25901356]
[1731912953196,12.25901356,242.66,242.56,4.1226]
[1731912953581,12.25901356,242.64,242.54,10.3073]
[1731912953781,12.25901356,242.62,242.54,14.4303]
[1731912953988,115.7559,242.65,242.55,12.25901356]
[1731912955099,115.7559,242.65,242.56,4.1226]
[1731912955411,12.25901356,242.59,242.54,10.3073]
[1731912955580,12.25901356,242.61,242.54,10.3073]
[1731912955975,12.25901356,242.63,242.54,14.4303]
[1731912957576,0.12549,242.64,242.54,12.25901356]
[1731912957980,0.21916462,242.64,242.54,12.25901356]
[1731912958178,12.25901356,242.65,242.55,23.776884]
[1731912958805,115.7559,242.71,242.56,26.68831356]
[1731912959005,115.7559,242.71,242.58,12.25901356]
[1731912959006,12.25901356,242.67,242.58,12.25901356]
[1731912959707,12.25901356,242.65,242.57,23.776884]
[1731912959907,12.25901356,242.63,242.56,10.3067]
[1731912960409,12.25901356,242.63,242.56,14.4293]
[1731912960798,12.25901356,242.61,242.52,16.38231356]
[1731912961107,12.25901356,242.57,242.48,16.38301356]
[1731912962081,12.25901356,242.55,242.46,12.25901356]
[1731912962611,12.25901356,242.53,242.44,26.69521356]
[1731912963110,12.25901356,242.53,242.38,21.9594]
[1731912963111,12.25901356,242.49,242.42,4.125]
[1731912963619,0.34465462,242.46,242.38,22.57311356]
[1731912964215,0.34465462,242.46,242.4,12.25901356]
[1731912964391,0.12549,242.48,242.4,12.25901356]
[1731912964585,0.21916462,242.48,242.4,12.25901356]
[1731912964986,0.12549,242.53,242.38,14.4398]
[1731912965182,0.12549,242.54,242.38,14.4398]
[1731912965402,0.09367462,242.53,242.38,14.4398]
[1731912965604,0.09367462,242.53,242.46,12.25901356]
[1731912966486,128.01491356,242.57,242.45,4.1244]
[1731912966690,115.7559,242.57,242.46,23.776884]
[1731912966993,0.09367462,242.56,242.51,12.25901356]
[1731912967599,0.09367462,242.57,242.51,12.25901356]
[1731912967794,0.12549,242.56,242.51,12.25901356]
[1731912968304,0.12549,242.56,242.48,12.25901356]
[1731912968486,0.09367462,242.55,242.48,12.25901356]
[1731912969685,0.09367462,242.52,242.44,12.25901356]
[1731912969891,115.7559,242.53,242.42,4.1249]
[1731912970089,4.123,242.55,242.48,12.25901356]
[1731912970290,0.21916462,242.54,242.46,12.25901356]
[1731912970803,0.21916462,242.54,242.42,4.1249]
[1731912970993,0.21916462,242.54,242.46,12.25901356]
[1731912971615,0.21916462,242.54,242.46,16.38321356]
[1731912971813,128.01491356,242.57,242.48,12.25901356]
[1731912972021,0.12549,242.57,242.5,12.25901356]
[1731912973600,0.12549,242.57,242.49,4.1238]
[1731912974007,96.4,242.64,242.49,4.1238]
[1731912974008,15.7468,242.64,242.56,12.25901356]
[1731912974295,15.7468,242.64,242.55,12.25901356]
[1731912974296,32.12721356,242.64,242.55,12.25901356]
[1731912974596,12.25901356,242.59,242.51,12.25901356]
[1731912975318,12.25901356,242.59,242.49,26.69251356]
[1731912975529,0.34465462,242.58,242.49,26.69251356]
[1731912976020,12.25901356,242.57,242.49,14.4335]
[1731912976332,0.34465462,242.58,242.49,14.4335]
[1731912976519,12.25901356,242.55,242.47,4.1242]
[1731912976713,0.21916462,242.54,242.47,4.1242]
[1731912977068,0.21916462,242.55,242.48,12.25901356]
[1731912977227,128.01491356,242.57,242.48,12.25901356]
[1731912977424,115.7559,242.57,242.48,12.25901356]
[1731912977720,128.01491356,242.57,242.48,12.25901356]
[1731912978819,115.7559,242.57,242.5,12.25901356]
[1731912979824,15.7468,242.64,242.54,12.25901356]
[1731912980009,15.7468,242.64,242.46,0.2]
[1731912980220,15.7468,242.64,242.55,12.25901356]
[1731912980711,0.09367462,242.63,242.57,12.25901356]
[1731912981409,0.21916462,242.63,242.57,12.25901356]
[1731912982730,0.09367462,242.61,242.54,14.4302]
[1731912982904,0.21916462,242.61,242.54,14.4302]
[1731912983104,0.21916462,242.61,242.55,12.25901356]
[1731912983425,0.12549,242.62,242.55,12.25901356]
[1731912983620,0.25098,242.63,242.55,12.25901356]
[1731912983824,0.09367462,242.62,242.55,12.25901356]
[1731912984001,0.09367462,242.62,242.57,12.25901356]
[1731912985209,0.09367462,242.62,242.57,12.25901356]
[1731912987402,0.09367462,242.62,242.57,26.68771356]
[1731912987837,12.25901356,242.69,242.61,12.25901356]
[1731912988134,0.09367462,242.64,242.57,26.68771356]
[1731912988938,0.21916462,242.64,242.57,26.68771356]
[1731912989104,0.09367462,242.62,242.57,26.68771356]
[1731912989307,115.7559,242.67,242.61,12.25901356]
[1731912989522,5.3391451,242.68,242.63,12.25901356]
[1731912989933,5.3391451,242.68,242.61,12.25901356]
[1731912990103,0.09367462,242.67,242.61,12.25901356]
[1731912990309,12.35268818,242.67,242.59,12.25901356]
[1731912990718,0.25098,242.66,242.59,12.25901356]
[1731912990925,0.09367462,242.65,242.61,12.25901356]
[1731912991136,0.25098,242.63,242.51,20.0]
[1731912991433,0.09367462,242.62,242.58,12.25901356]
[1731912992116,0.12549,242.63,242.58,12.25901356]
[1731912992326,128.01491356,242.66,242.58,12.25901356]
[1731912992628,0.09367462,242.63,242.56,12.25901356]
[1731912992838,0.09367462,242.63,242.57,14.4288]
[1731912993724,0.12549,242.65,242.58,12.25901356]
[1731912994032,0.12549,242.67,242.6,12.25901356]
[1731912994234,5.3391451,242.68,242.62,12.25901356]
[1731912994441,15.2725,242.71,242.64,12.25901356]
[1731912994938,12.25901356,242.74,242.65,14.424]
[1731912996236,0.12549,242.73,242.65,14.424]
[1731912996732,21.5526,242.77,242.69,12.25901356]
[1731912996939,12.25901356,242.79,242.71,12.25901356]
[1731912997241,30.0,242.72,242.71,12.25901356]
[1731912997543,30.0,242.72,242.69,12.25901356]
[1731912997841,30.0,242.72,242.71,12.25901356]
[1731912998009,30.0,242.72,242.69,12.25901356]
[1731912998535,30.0,242.72,242.67,12.25901356]
[1731912998748,30.0,242.72,242.68,14.4222]
[1731912999240,0.09367462,242.71,242.68,14.4222]
[1731912999749,0.09367462,242.71,242.68,10.3016]
[1731913000311,30.09367462,242.71,242.68,10.3016]
[1731913001533,30.0,242.71,242.68,10.3016]
[1731913001711,0.09367462,242.7,242.68,10.3016]
[1731913001915,0.21916462,242.68,242.63,4.1214]
[1731913002136,12.25901356,242.65,242.59,4.122]
[1731913002339,0.12549,242.64,242.59,4.122]
[1731913002531,12.35268818,242.63,242.58,10.3058]
[1731913002735,0.09367462,242.59,242.55,4.1228]
[1731913003244,0.09367462,242.59,242.55,14.4299]
[1731913003431,0.12549,242.62,242.55,14.4299]
[1731913003817,0.09367462,242.61,242.55,14.4299]
[1731913004743,0.12549,242.66,242.6,12.25901356]
[1731913004938,20.7345,242.71,242.56,12.25901356]
[1731913004939,0.12549,242.64,242.56,12.25901356]
[1731913005415,0.09367462,242.63,242.56,12.25901356]
[1731913005617,0.09367462,242.63,242.57,14.4288]
[1731913007148,30.0,242.61,242.57,14.4288]
[1731913008051,0.09367462,242.6,242.54,12.25901356]
[1731913008353,0.21916462,242.58,242.52,12.25901356]
[1731913008731,30.0,242.59,242.51,14.4323]
[1731913008732,0.21916462,242.55,242.51,10.3088]
[1731913009141,30.09367462,242.55,242.51,10.3088]
[1731913009455,30.09367462,242.55,242.51,14.4323]
[1731913009659,0.09367462,242.53,242.51,10.3088]
[1731913010026,30.0,242.55,242.51,10.3088]
[1731913010339,30.0,242.55,242.53,12.25901356]
[1731913010655,12.25901356,242.62,242.53,12.25901356]
[1731913010656,30.0,242.54,242.53,12.25901356]
[1731913010838,0.09367462,242.61,242.53,12.25901356]
[1731913011546,0.09367462,242.6,242.53,12.25901356]
[1731913011750,12.35268818,242.6,242.51,22.56781356]
[1731913012259,0.09367462,242.58,242.51,26.69131356]
[1731913012558,12.25901356,242.56,242.51,14.4323]
[1731913012726,0.21916462,242.57,242.51,14.4323]
[1731913012921,0.09367462,242.55,242.51,14.4323]
[1731913013143,0.09367462,242.53,242.51,10.3088]
[1731913013347,0.21916462,242.53,242.51,14.4323]
[1731913013522,0.21916462,242.53,242.51,10.3088]
[1731913014345,0.21916462,242.53,242.45,14.4359]
[1731913015242,0.21916462,242.53,242.46,12.25901356]
[1731913015432,12.25901356,242.56,242.48,12.25901356]
[1731913015950,0.09367462,242.55,242.47,20.0]
[1731913016328,0.09367462,242.55,242.48,14.4341]
[1731913016568,0.21916462,242.55,242.48,26.69311356]
[1731913016731,12.25901356,242.54,242.48,14.4341]
[1731913016932,0.21916462,242.53,242.48,14.4341]
[1731913019432,0.21916462,242.53,242.48,10.3101]
[1731913019433,0.09367462,242.5,242.48,10.3101]
[1731913020130,0.09367462,242.51,242.48,10.3101]
[1731913020466,0.12549,242.56,242.48,22.56911356]
[1731913020762,12.35268818,242.55,242.48,10.3101]
[1731913021127,0.12549,242.54,242.48,10.3101]
[1731913021328,30.0,242.5,242.48,10.3101]
[1731913022229,30.0,242.5,242.48,22.56911356]
[1731913022431,30.0,242.5,242.48,10.3101]
[1731913022745,30.0,242.52,242.49,12.25901356]
[1731913023332,12.25901356,242.61,242.49,43.776884]
[1731913023559,12.25901356,242.61,242.53,12.25901356]
[1731913024234,0.09367462,242.62,242.51,23.776884]
[1731913024440,0.09367462,242.62,242.53,12.25901356]
[1731913024855,0.21916462,242.62,242.54,14.4305]
[1731913026176,0.21916462,242.62,242.54,10.3075]
[1731913026750,12.25901356,242.61,242.54,10.3075]
[1731913027185,12.25901356,242.59,242.54,10.3075]
[1731913027467,0.09367462,242.58,242.54,10.3075]
[1731913027674,0.21916462,242.58,242.54,10.3075]
[1731913028671,12.25901356,242.55,242.49,14.4333]
[1731913029553,0.21916462,242.54,242.49,14.4333]
[1731913029769,12.25901356,242.53,242.49,14.4333]
[1731913030447,12.25901356,242.53,242.49,10.3095]
[1731913032275,0.21916462,242.52,242.49,10.3095]
[1731913032673,0.21916462,242.52,242.43,12.25901356]
[1731913032973,0.21916462,242.52,242.44,14.4365]
[1731913033374,12.47817818,242.52,242.45,12.25901356]
[1731913033767,12.47817818,242.52,242.44,10.3118]
[1731913035566,12.47817818,242.52,242.44,14.4365]
[1731913036199,159.1,242.59,242.48,12.25901356]
[1731913036398,12.25901356,242.59,242.45,20.0]
[1731913036599,12.25901356,242.61,242.52,12.25901356]
[1731913036762,159.1,242.67,242.49,12.25901356]
[1731913036763,12.25901356,242.57,242.49,12.25901356]
[1731913036967,0.09367462,242.56,242.47,32.25901356]
[1731913037484,0.09367462,242.56,242.48,14.4341]
[1731913038381,0.21916462,242.56,242.49,12.25901356]
[1731913038579,0.12549,242.56,242.49,12.25901356]
[1731913038771,0.12549,242.56,242.5,14.4329]
[1731913039487,0.21916462,242.57,242.5,14.4329]
[1731913039695,12.25901356,242.56,242.5,14.4329]
[1731913039900,0.12549,242.55,242.5,14.4329]
[1731913040793,0.21916462,242.57,242.5,14.4329]
[1731913044685,12.25901356,242.6,242.5,26.69191356]
[1731913044895,12.25901356,242.62,242.52,12.25901356]
[1731913045671,22.26,242.63,242.54,12.25901356]
[1731913046093,22.26,242.63,242.51,43.776884]
[1731913046396,22.26,242.63,242.54,12.25901356]
[1731913047002,0.12549,242.62,242.55,14.4299]
[1731913047183,0.12549,242.62,242.56,12.25901356]
[1731913047995,0.12549,242.63,242.56,12.25901356]
[1731913048687,12.25901356,242.72,242.62,12.25901356]
[1731913048890,27.51611356,242.74,242.64,12.25901356]
[1731913049096,27.51611356,242.74,242.65,14.424]
[1731913050801,15.2571,242.74,242.65,14.424]
[1731913050981,12.25901356,242.73,242.65,14.424]
[1731913051298,0.25098,242.72,242.65,14.424]
[1731913051804,0.25098,242.7,242.65,14.424]
[1731913052677,0.25098,242.7,242.65,10.3029]
[1731913052885,0.25098,242.71,242.65,10.3029]
[1731913054402,6.4032,242.76,242.65,10.3029]
[1731913054601,12.25901356,242.75,242.66,32.25901356]
[1731913054901,0.09367462,242.74,242.66,32.25901356]
[1731913055873,0.12549,242.73,242.67,14.4228]
[1731913057501,0.12549,242.72,242.67,14.4228]
[1731913058289,0.09367462,242.69,242.67,14.4228]
[1731913059310,0.25098,242.7,242.67,10.302]
[1731913060311,0.25098,242.7,242.6,0.1]
[1731913060312,12.25901356,242.68,242.55,20.7143]
[1731913060487,0.25098,242.67,242.59,10.3052]
[1731913060797,0.25098,242.67,242.6,12.25901356]
[1731913060996,0.12549,242.71,242.62,12.25901356]
[1731913061309,0.25098,242.71,242.65,14.424]
[1731913061884,0.09367462,242.7,242.65,14.424]
[1731913062181,0.12549,242.69,242.65,14.424]
[1731913063201,0.12549,242.69,242.65,10.3029]
[1731913064597,0.34465462,242.67,242.61,4.1218]
[1731913065006,0.25098,242.64,242.61,4.1218]
[1731913065593,0.25098,242.64,242.6,10.3047]
[1731913065594,0.25098,242.62,242.6,10.3047]
[1731913065803,0.12549,242.6,242.57,4.1224]
[1731913066113,0.12549,242.62,242.58,12.25901356]
[1731913066329,12.25901356,242.62,242.57,4.1224]
[1731913066490,0.34465462,242.61,242.57,4.1224]
[1731913067139,0.09367462,242.58,242.56,10.3067]
[1731913067304,0.25098,242.57,242.56,14.4293]
[1731913067492,0.25098,242.57,242.5,12.25901356]
[1731913067700,0.25098,242.57,242.51,14.4323]
[1731913067901,0.12549,242.57,242.51,14.4323]
[1731913068210,0.34465462,242.58,242.51,14.4323]
[1731913068602,0.34465462,242.58,242.52,20.0]
[1731913069117,0.34465462,242.58,242.48,20.0]
[1731913069297,0.09367462,242.57,242.5,20.0]
[1731913070522,0.09367462,242.57,242.51,14.4323]
[1731913070697,0.09367462,242.57,242.34,10.3158]
[1731913070698,0.34465462,242.49,242.34,10.3158]
[1731913070915,23.776884,242.5,242.34,10.3158]
[1731913070916,0.34465462,242.38,242.34,10.3158]
[1731913071113,172.51048841,242.48,242.3,4.1271]
[1731913071114,0.34465462,242.36,242.3,4.1271]
[1731913071321,0.34465462,242.36,242.28,14.4458]
[1731913071535,0.12549,242.32,242.28,14.4458]
[1731913071737,0.25098,242.32,242.28,14.4458]
[1731913072222,0.25098,242.3,242.28,10.3184]
[1731913072535,0.12549,242.3,242.28,10.3184]
[1731913072717,0.12549,242.3,242.25,4.1279]
[1731913072924,0.21916462,242.27,242.22,14.4493]
[1731913073215,0.25098,242.26,242.22,14.4493]
[1731913073833,0.34465462,242.25,242.22,14.4493]
[1731913074834,0.34465462,242.25,242.22,10.321]
[1731913076547,0.25098,242.29,242.22,22.58001356]
[1731913076847,0.25098,242.31,242.24,12.25901356]
[1731913077146,24.027864,242.31,242.24,12.25901356]
[1731913077344,0.09367462,242.3,242.24,12.25901356]
[1731913077728,0.09367462,242.3,242.23,20.0]
[1731913078049,0.09367462,242.3,242.17,24.7759]
[1731913078050,23.902374,242.26,242.18,20.0]
[1731913078343,0.12549,242.26,242.18,20.0]
[1731913079534,0.12549,242.26,242.2,20.0]
[1731913080247,0.09367462,242.24,242.2,20.0]
[1731913080426,0.34465462,242.24,242.2,20.0]
[1731913080627,0.34465462,242.22,242.19,14.4513]
[1731913081053,0.25098,242.22,242.19,14.4513]
[1731913081223,0.12549,242.21,242.19,10.3224]
[1731913081551,0.12549,242.21,241.92,38.72420136]
[1731913081552,159.1,242.56,242.33,0.1]
[1731913081753,12.25901356,242.52,242.41,12.25901356]
[1731913081926,12.25901356,242.52,242.43,12.25901356]
[1731913082124,12.25901356,242.5,242.39,12.25901356]
[1731913082525,12.25901356,242.5,242.4,20.0]
[1731913082824,12.25901356,242.48,242.39,12.25901356]
[1731913083240,12.25901356,242.46,242.4,4.1254]
[1731913083445,12.25901356,242.48,242.4,4.1254]
[1731913083646,12.25901356,242.48,242.4,14.4389]
[1731913084034,0.09367462,242.45,242.4,14.4389]
[1731913084551,19.61242426,242.46,242.4,10.3135]
[1731913084727,0.34465462,242.45,242.4,10.3135]
[1731913085125,0.09367462,242.43,242.4,10.3135]
[1731913085449,0.25098,242.42,242.4,10.3135]
[1731913085743,0.34465462,242.41,242.4,10.3135]
[1731913085946,0.25098,242.38,242.34,10.3159]
[1731913086452,0.34465462,242.37,242.34,10.3159]
[1731913087128,0.34465462,242.37,242.31,4.1269]
[1731913087337,0.21916462,242.33,242.29,4.1272]
[1731913087661,0.34465462,242.3,242.29,4.1272]
[1731913088544,0.09367462,242.29,242.27,14.4463]
[1731913088743,0.21916462,242.28,242.27,14.4463]
[1731913089053,0.12549,242.38,242.28,43.776884]
[1731913089223,19.61242426,242.44,242.35,19.61242426]
[1731913089625,20.7336,242.49,242.37,19.61242426]
[1731913089626,19.61242426,242.46,242.37,19.61242426]
[1731913090022,19.61242426,242.48,242.37,19.61242426]
[1731913090238,16.6097,242.49,242.28,43.776884]
[1731913090239,16.6097,242.49,242.41,19.61242426]
[1731913090649,16.6097,242.49,242.42,14.4376]
[1731913091248,0.09367462,242.48,242.42,14.4376]
[1731913091745,0.12549,242.47,242.42,14.4376]
[1731913092329,19.61242426,242.52,242.42,14.4376]
[1731913092533,21.65,242.55,242.42,14.4376]
[1731913092534,19.61242426,242.54,242.42,14.4376]
[1731913092858,19.61242426,242.54,242.45,19.61242426]
[1731913093227,0.09367462,242.53,242.45,19.61242426]
[1731913093832,0.21916462,242.51,242.46,14.4352]
[1731913094051,0.09367462,242.47,242.46,14.4352]
[1731913094376,0.34465462,242.47,242.46,14.4352]
[1731913095055,0.34465462,242.47,242.46,10.3109]
[1731913096655,0.09367462,242.45,242.41,14.4383]
[1731913096829,0.09367462,242.43,242.41,14.4383]
[1731913097034,0.34465462,242.42,242.41,14.4383]
[1731913099753,0.21916462,242.42,242.41,34.4383]
[1731913100551,0.21916462,242.42,242.41,58.215184]
[1731913101051,0.21916462,242.42,242.41,77.82760826]
[1731913102259,0.21916462,242.42,242.41,58.215184]
[1731913102435,0.21916462,242.42,242.41,77.82760826]
[1731913102844,0.21916462,242.42,242.41,54.05072426]
[1731913103044,0.21916462,242.42,242.41,34.4383]
[1731913103235,0.21916462,242.42,242.41,54.05072426]
[1731913104261,0.21916462,242.42,242.41,46.69076267]
[1731913106668,0.21916462,242.42,242.41,34.4383]
[1731913107554,0.34465462,242.42,242.41,10.3131]
[1731913108643,0.21916462,242.37,242.31,12.25246267]
[1731913108848,0.21916462,242.35,242.31,12.25246267]
[1731913109043,0.09367462,242.33,242.31,12.25246267]
[1731913109242,0.09367462,242.33,242.31,26.69656267]
[1731913110955,0.34465462,242.32,242.31,22.56966267]
[1731913111156,0.34465462,242.32,242.31,14.4441]
[1731913111653,0.34465462,242.32,242.3,12.25246267]
[1731913111654,0.09367462,242.31,242.28,12.25246267]
[1731913111856,0.09367462,242.31,242.3,12.25246267]
[1731913113366,15.0223,242.42,242.31,43.776884]
[1731913113538,15.0223,242.42,242.35,12.25246267]
[1731913114151,4.1242,242.47,242.31,43.776884]
[1731913114152,15.0223,242.5,242.41,12.25246267]
[1731913114368,15.0223,242.5,242.43,12.25246267]
[1731913114551,15.0223,242.5,242.42,20.0]
[1731913115162,0.09367462,242.49,242.41,12.25246267]
[1731913115461,0.09367462,242.47,242.4,20.0]
[1731913115963,0.34465462,242.47,242.4,20.0]
[1731913116142,0.34465462,242.47,242.41,12.25246267]
[1731913117559,0.34465462,242.47,242.42,4.125]
[1731913117753,0.34465462,242.47,242.46,12.25246267]
[1731913117954,12.25246267,242.54,242.44,12.25246267]
[1731913119544,0.09367462,242.51,242.42,12.25246267]
[1731913119766,0.09367462,242.49,242.42,12.25246267]
[1731913119968,0.09367462,242.47,242.42,12.25246267]
[1731913120147,0.21916462,242.47,242.42,12.25246267]
[1731913121262,0.21916462,242.47,242.44,12.25246267]
[1731913121551,0.21916462,242.47,242.43,14.4371]
[1731913123471,0.21916462,242.45,242.43,10.3122]
[1731913124055,0.34465462,242.44,242.43,10.3122]
[1731913124763,0.21916462,242.43,242.37,10.3143]
[1731913124949,0.21916462,242.44,242.37,10.3143]
[1731913124950,0.21916462,242.39,242.37,14.4401]
[1731913125453,0.21916462,242.39,242.37,10.3143]
[1731913125852,0.21916462,242.39,242.37,14.4402]
[1731913128977,159.1,242.51,242.37,12.25246267]
[1731913129273,12.25246267,242.49,242.39,12.25246267]
[1731913129452,0.09367462,242.48,242.39,12.25246267]
[1731913129656,4.123,242.54,242.42,12.25246267]
[1731913130061,12.25246267,242.5,242.42,12.25246267]
[1731913130273,12.25246267,242.5,242.4,12.25246267]
[1731913130455,0.09367462,242.49,242.42,12.25246267]
[1731913130965,0.09367462,242.47,242.38,22.56656267]
[1731913131168,0.34465462,242.47,242.4,12.25246267]
[1731913131553,0.34465462,242.47,242.38,22.56656267]
[1731913132248,0.34465462,242.47,242.41,12.25246267]
[1731913132665,0.21916462,242.48,242.4,23.776884]
[1731913132876,0.21916462,242.48,242.4,27.902084]
[1731913133174,0.21916462,242.48,242.4,4.1252]
[1731913133573,0.09367462,242.44,242.38,10.3141]
[1731913133769,0.21916462,242.44,242.38,10.3141]
[1731913134274,0.09367462,242.4,242.38,14.4398]
[1731913134479,0.12549,242.41,242.39,12.25246267]
[1731913134662,0.25098,242.49,242.39,12.25246267]
[1731913134971,12.34613729,242.46,242.38,10.3141]
[1731913135183,0.09367462,242.42,242.38,10.3141]
[1731913135477,0.25098,242.43,242.38,14.4398]
[1731913135478,0.09367462,242.4,242.38,14.4398]
[1731913135648,0.12549,242.41,242.39,12.25246267]
[1731913135849,0.12549,242.47,242.4,23.776884]
[1731913136052,0.25098,242.47,242.4,23.776884]
[1731913136474,0.21916462,242.46,242.4,23.776884]
[1731913136660,0.09367462,242.44,242.4,23.776884]
[1731913136860,0.09367462,242.44,242.41,4.1252]
[1731913137271,0.09367462,242.44,242.41,14.4383]
[1731913137473,0.09367462,242.42,242.41,10.3131]
[1731913137977,0.34465462,242.42,242.41,10.3131]
[1731913138290,4.1227,242.56,242.41,14.4383]
[1731913138571,4.1226,242.57,242.45,12.25246267]
[1731913138777,12.25246267,242.51,242.42,36.02934667]
[1731913138975,12.25246267,242.51,242.35,0.1]
[1731913138976,12.25246267,242.51,242.43,4.1249]
[1731913139157,12.25246267,242.51,242.43,14.4371]
[1731913139357,12.25246267,242.51,242.44,23.776884]
[1731913139551,12.25246267,242.54,242.47,23.776884]
[1731913139752,12.25246267,242.52,242.47,23.776884]
[1731913139972,0.09367462,242.51,242.47,23.776884]
[1731913140152,0.09367462,242.51,242.45,23.776884]
[1731913140555,0.09367462,242.54,242.45,36.02934667]
[1731913140788,12.34613729,242.54,242.45,36.02934667]
[1731913141075,0.09367462,242.5,242.46,4.1243]
[1731913141954,0.09367462,242.5,242.44,34.4365]
[1731913142156,0.09367462,242.5,242.45,23.776884]